bitfinex-derivatives/quotes_ETHF0:USTF0_20250125
["timestamp","ask_amount","ask_price","bid_price","bid_amount"]
[1737830683864,0.47861,3343.5,3343.4,3.2078]
[1737830684063,0.47862,3343.4,3343.3,0.48311471]
[1737830684254,1.43702,3343.4,3343.3,0.48311471]
[1737830684455,0.9584,3343.4,3343.3,0.48311471]
[1737830684758,1.43702,3343.4,3343.3,0.48311471]
[1737830685161,1.43702,3343.4,3343.3,0.00448471]
[1737830699579,0.47871,3342.8,3342.6,0.47873]
[1737830700080,0.99753,3342.7,3342.5,0.96554]
[1737830700279,1.50833,3342.7,3342.5,0.96554]
[1737830700476,1.0296,3342.7,3342.5,0.96554]
[1737830700681,1.0296,3342.7,3342.6,0.47874]
[1737830701375,0.98952,3342.7,3342.6,0.47874]
[1737830701880,0.47874,3342.6,3342.5,0.96555]
[1737830703680,0.98953,3342.7,3342.6,0.47874]
[1737830703875,0.47876,3342.4,3342.3,0.00448471]
[1737830704585,0.47885,3341.8,3341.7,0.47885]
[1737830704884,0.47885,3341.8,3341.7,0.5037]
[1737830705071,0.47886,3341.7,3341.6,3.7243]
[1737830709474,1.0393,3341.9,3341.6,3.7243]
[1737830709778,0.47886,3341.8,3341.6,4.20317]
[1737830711585,0.47886,3341.7,3341.6,3.7243]
[1737830713190,0.47886,3341.7,3341.6,0.5165]
[1737830713576,1.07556979,3341.8,3341.4,0.5037]
[1737830713782,0.47889,3341.5,3341.4,0.5037]
[1737830714586,0.47889,3341.5,3341.4,0.98261]
[1737830714783,1.55445979,3341.6,3341.4,0.98261]
[1737830714982,0.47889,3341.5,3341.4,0.98261]
[1737830715180,0.47889,3341.5,3341.4,0.5037]
[1737830717289,1.55444979,3341.6,3341.4,0.5037]
[1737830717487,1.55444979,3341.6,3341.5,0.47889]
[1737830717889,0.47888,3341.6,3341.5,0.47889]
[1737830718682,0.47888,3341.6,3341.4,0.5037]
[1737830718903,0.47888,3341.6,3341.5,0.47889]
[1737830719386,1.07556979,3341.8,3341.4,0.5037]
[1737830719587,0.47889,3341.5,3341.4,0.9826]
[1737830719983,1.07556979,3341.8,3341.4,0.5037]
[1737830720186,0.47884,3341.9,3341.8,0.47885]
[1737830720691,2.979,3342.1,3341.4,0.5037]
[1737830720692,2.979,3342.1,3342.0,0.47882]
[1737830721489,1.55435979,3342.2,3342.1,0.47881]
[1737830721696,0.47879,3342.2,3342.1,0.47881]
[1737830722393,4.2198,3342.4,3341.9,0.4972]
[1737830722590,0.47881,3342.1,3341.9,0.4972]
[1737830722892,0.47879,3342.3,3342.1,0.4788]
[1737830723088,0.47879,3342.2,3342.1,0.4788]
[1737830723288,0.47879,3342.2,3341.9,0.4972]
[1737830723594,0.47879,3342.2,3342.0,0.47881]
[1737830725797,4.2198,3342.4,3341.9,0.97602]
[1737830725798,0.47882,3342.0,3341.9,0.97602]
[1737830727392,0.47882,3342.0,3341.9,0.4972]
[1737830728690,0.47882,3342.0,3341.9,0.97604]
[1737830728898,0.47881,3342.1,3341.9,0.97604]
[1737830729897,0.47881,3342.1,3342.0,0.47882]
[1737830730095,4.2198,3342.4,3341.9,3.705]
[1737830730294,3.2078,3342.4,3342.3,0.47878]
[1737830730694,3.68656,3342.4,3342.3,0.47878]
[1737830731094,0.47878,3342.3,3342.0,0.47882]
[1737830731398,0.47878,3342.3,3342.1,0.4788]
[1737830731599,0.47878,3342.3,3342.2,0.47879]
[1737830733604,0.47877,3342.4,3341.9,3.705]
[1737830733804,0.47877,3342.4,3342.2,0.47878]
[1737830734005,0.47877,3342.4,3342.3,0.4959]
[1737830734303,0.47876,3342.5,3342.4,0.47876]
[1737830734500,0.47876,3342.5,3342.3,0.97467]
[1737830734698,0.47876,3342.5,3342.4,0.4729]
[1737830736098,0.47876,3342.5,3342.4,0.95166]
[1737830736405,0.47876,3342.5,3342.4,0.4729]
[1737830737696,0.47876,3342.5,3342.4,0.95166]
[1737830737902,0.48228471,3342.9,3342.4,0.4729]
[1737830738102,0.47871,3342.8,3342.7,0.47871]
[1737830738801,0.47871,3342.8,3342.6,0.47873]
[1737830739103,0.47873,3342.7,3342.4,0.4729]
[1737830739303,0.47873,3342.7,3342.5,0.47874]
[1737830739705,0.48228471,3342.9,3342.4,0.4729]
[1737830739904,0.47875,3342.5,3342.4,0.4729]
[1737830740603,0.47874,3342.6,3342.4,0.4729]
[1737830740801,0.47874,3342.6,3342.4,0.95166]
[1737830741008,0.47873,3342.7,3342.5,0.47874]
[1737830741809,0.47874,3342.6,3342.5,0.47874]
[1737830742405,0.47874,3342.6,3342.4,0.95165]
[1737830742907,0.47874,3342.6,3342.4,0.4729]
[1737830743108,0.47874,3342.6,3342.5,0.47875]
[1737830745811,1.55713427,3342.9,3342.3,0.4959]
[1737830745812,0.47876,3342.4,3342.3,0.4959]
[1737830746412,0.47879,3342.2,3342.1,0.4964]
[1737830748213,0.47881,3342.1,3342.0,3.7164]
[1737830748409,0.47881,3342.1,3342.0,3.2078]
[1737830748714,1.55365956,3342.1,3342.0,3.2078]
[1737830749710,1.07484956,3342.1,3341.5,0.5193]
[1737830749912,3.7081,3342.3,3341.4,0.4935]
[1737830749913,0.47889,3341.5,3341.4,0.4935]
[1737830750807,0.97759,3341.5,3341.4,0.4935]
[1737830752311,3.2078,3341.9,3341.4,0.4935]
[1737830752811,0.47887,3341.7,3341.5,0.47888]
[1737830753813,0.47887,3341.7,3341.4,0.4935]
[1737830753814,0.47888,3341.6,3341.4,0.97239]
[1737830754016,1.0048,3342.0,3341.4,0.97239]
[1737830754319,0.47889,3341.5,3341.4,0.4935]
[1737830754511,0.47889,3341.5,3341.3,4.04774282]
[1737830754713,0.47889,3341.5,3341.3,4.53394282]
[1737830755407,0.47889,3341.5,3341.3,4.53393282]
[1737830756021,0.47891,3341.4,3341.3,4.05502282]
[1737830757521,0.47891,3341.4,3341.3,4.53394282]
[1737830759919,0.47891,3341.4,3341.3,4.05502282]
[1737830760822,0.47891,3341.4,3341.3,4.53394282]
[1737830761222,0.47891,3341.4,3341.3,4.05502282]
[1737830762824,0.47891,3341.4,3341.3,4.53394282]
[1737830766122,0.9935,3341.5,3341.4,0.47891]
[1737830767022,0.5146,3341.5,3341.4,0.47891]
[1737830767223,0.47888,3341.6,3341.5,0.47888]
[1737830767525,0.47886,3341.8,3341.7,0.47886]
[1737830769235,0.9911,3341.9,3341.7,0.47886]
[1737830769432,0.9911,3341.9,3341.8,0.47885]
[1737830769635,3.68662,3342.1,3342.0,0.47882]
[1737830769837,3.68662,3342.1,3341.4,1.19725]
[1737830770039,3.68662,3342.1,3341.9,0.47882]
[1737830770339,3.68662,3342.1,3342.0,0.5005]
[1737830770931,0.47883,3342.0,3341.3,5.25233282]
[1737830771225,0.47883,3342.0,3341.9,0.47884]
[1737830772539,3.2078,3342.1,3341.6,0.517]
[1737830772738,0.47885,3341.8,3341.7,0.47886]
[1737830774132,1.54794349,3342.0,3341.5,0.5057]
[1737830774333,0.47888,3341.6,3341.5,0.98458]
[1737830774738,1.07544349,3341.8,3341.6,0.47888]
[1737830774739,1.50807,3341.7,3341.6,0.47888]
[1737830775839,0.5126,3341.7,3341.6,0.47888]
[1737830776135,0.4725,3342.0,3341.5,1.58114349]
[1737830776338,0.47886,3341.8,3341.6,0.47887]
[1737830776732,0.5166,3341.9,3341.8,0.47885]
[1737830776733,0.99544,3341.9,3341.8,0.47885]
[1737830777040,2.979,3342.4,3341.7,1.07544349]
[1737830777229,0.89900254,3342.3,3342.1,0.4788]
[1737830777427,0.89900254,3342.3,3342.2,0.513]
[1737830777834,0.42021254,3342.3,3341.8,0.9685]
[1737830778034,1.07544349,3342.2,3341.8,0.4785]
[1737830778237,0.47884,3341.9,3341.8,0.4785]
[1737830778937,0.97004,3341.9,3341.8,0.4785]
[1737830779139,0.47886,3341.7,3341.6,0.99187]
[1737830780131,0.47886,3341.8,3341.7,0.47886]
[1737830782440,0.97005,3341.9,3341.8,0.47885]
[1737830785736,0.47886,3341.8,3341.7,0.47886]
[1737830786045,0.97004,3341.9,3341.8,0.47885]
[1737830787046,0.47884,3341.9,3341.8,0.47885]
[1737830787445,0.47883,3342.0,3341.9,0.47883]
[1737830791645,0.47883,3342.0,3341.8,0.47884]
[1737830792450,0.89935504,3342.0,3341.8,0.47884]
[1737830792648,0.5015,3342.1,3341.8,0.47884]
[1737830792957,0.47884,3341.9,3341.8,0.47884]
[1737830794157,0.5015,3342.1,3341.8,0.47884]
[1737830794356,3.21228471,3342.9,3342.0,2.27250349]
[1737830794556,0.47873,3342.7,3342.4,1.55419349]
[1737830794755,0.9751,3342.8,3342.5,0.47874]
[1737830795057,0.47873,3342.7,3342.5,0.5007]
[1737830795653,0.47873,3342.7,3342.5,0.97945]
[1737830795848,0.47873,3342.7,3342.5,0.5007]
[1737830796052,0.47873,3342.6,3342.3,0.47877]
[1737830796558,0.47873,3342.6,3342.4,0.47876]
[1737830796761,0.47873,3342.7,3342.4,0.47876]
[1737830796957,3.21228471,3342.9,3342.2,0.5019]
[1737830797258,0.47873,3342.7,3342.2,0.5019]
[1737830797459,0.47873,3342.7,3342.4,0.47875]
[1737830799265,0.47873,3342.7,3342.5,0.47875]
[1737830800265,0.47873,3342.6,3342.4,0.47876]
[1737830800467,0.47873,3342.7,3342.4,0.47876]
[1737830800762,0.47873,3342.7,3342.2,0.5019]
[1737830800763,0.47873,3342.7,3342.5,0.47875]
[1737830801163,0.95181,3342.8,3342.5,0.47875]
[1737830801358,0.95181,3342.8,3342.6,0.99653]
[1737830801569,0.47872,3342.7,3342.6,0.5178]
[1737830802367,0.4731,3342.8,3342.6,0.5178]
[1737830802561,3.21228471,3342.9,3342.8,0.47871]
[1737830805469,0.00448471,3342.9,3342.8,0.47871]
[1737830805865,0.41915692,3343.5,3343.4,0.47862]
[1737830806165,0.89775692,3343.6,3343.4,0.47862]
[1737830806968,0.47861,3343.5,3343.3,0.47863]
[1737830807169,0.47861,3343.5,3343.4,0.4764]
[1737830807463,0.00448471,3343.8,3343.2,0.00448471]
[1737830807665,0.00448471,3343.8,3343.2,0.99328471]
[1737830807858,0.00448471,3343.8,3343.7,0.47858]
[1737830809463,0.00448471,3343.8,3343.7,0.97198]
[1737830812466,0.48304471,3343.8,3343.7,0.4934]
[1737830814262,0.00448471,3343.8,3343.7,0.4934]
[1737830814460,0.00448471,3343.8,3343.7,0.97198]
[1737830817671,3.2078,3344.6,3344.5,0.47846]
[1737830818563,3.2078,3344.6,3344.4,0.47846]
[1737830818766,3.2078,3344.6,3344.5,0.973]
[1737830819572,3.2078,3344.6,3344.5,1.45146]
[1737830821368,3.68625,3344.6,3344.5,0.973]
[1737830821571,0.47844,3344.7,3344.5,1.45146]
[1737830822370,0.00448471,3344.9,3344.5,0.973]
[1737830823074,0.48289471,3344.9,3344.7,0.47843]
[1737830823674,0.00448471,3344.9,3344.6,0.47845]
[1737830823876,0.48289471,3344.9,3344.7,0.47842]
[1737830824386,0.00448471,3344.9,3344.8,0.47842]
[1737830824874,4.51863132,3345.9,3344.8,0.47842]
[1737830824875,3.2078,3345.7,3344.8,2.38193132]
[1737830825180,3.6861,3345.7,3345.4,0.47833]
[1737830825371,0.47831,3345.6,3345.4,0.47833]
[1737830825670,0.47831,3345.6,3345.3,0.47835]
[1737830825870,0.47832,3345.5,3345.3,0.47835]
[1737830826376,3.2078,3345.7,3345.2,0.9765]
[1737830826677,0.47835,3345.3,3345.2,0.9765]
[1737830827378,0.99394,3345.4,3345.2,0.9765]
[1737830827575,0.99394,3345.4,3345.1,3.69065471]
[1737830827878,0.5156,3345.4,3345.2,0.47835]
[1737830828178,0.99394,3345.4,3345.2,0.47835]
[1737830829473,0.47835,3345.3,3345.1,3.69065471]
[1737830829869,0.47836,3345.2,3345.1,0.00448471]
[1737830830080,1.45626,3345.2,3345.1,0.00448471]
[1737830831265,1.8735348,3345.2,3345.1,0.00448471]
[1737830831469,1.45626,3345.2,3345.1,0.00448471]
[1737830831675,1.8735393,3345.2,3345.1,0.00448471]
[1737830834481,1.45626,3345.2,3345.1,0.00448471]
[1737830840991,4.66406,3345.2,3345.1,0.00448471]
[1737830842491,5.08273881,3345.2,3345.1,0.00448471]
[1737830845388,4.60437881,3345.2,3344.2,1.0151]
[1737830845586,5.58973132,3344.8,3344.2,0.5001]
[1737830845779,5.58973132,3344.8,3344.0,3.2078]
[1737830845780,0.47852,3344.1,3344.0,3.2078]
[1737830848088,0.5081,3344.2,3344.0,3.2078]
[1737830848286,0.47852,3344.1,3344.0,3.2078]
[1737830850492,0.47856,3343.8,3343.7,0.00448471]
[1737830854593,1.47566,3343.8,3343.7,0.00448471]
[1737830859698,0.99136,3343.8,3343.7,0.00448471]
[1737830868208,0.00448471,3344.1,3343.7,0.00448471]
[1737830868408,0.47854,3344.0,3343.8,0.47856]
[1737830869805,0.47854,3344.0,3343.7,1.49948471]
[1737830870008,0.47854,3344.0,3343.7,1.97805471]
[1737830871205,0.47856,3343.9,3343.7,1.97805471]
[1737830882916,0.47856,3343.8,3343.7,1.97805471]
[1737830884311,1.07857756,3344.1,3343.7,1.97805471]
[1737830884518,0.47856,3343.9,3343.7,1.97805471]
[1737830885213,0.00448471,3344.1,3343.9,0.47854]
[1737830885414,0.00448471,3344.1,3343.7,2.57357756]
[1737830885617,0.48300471,3344.1,3343.9,0.47854]
[1737830886015,0.47855,3344.0,3343.7,1.97805471]
[1737830886221,0.00448471,3344.1,3343.7,1.97805471]
[1737830886222,0.47856,3343.9,3343.7,1.97805471]
[1737830886425,0.47856,3343.8,3343.7,1.01478471]
[1737830886617,0.97346,3343.8,3343.7,1.01478471]
[1737830887509,0.97346,3343.8,3343.7,0.00448471]
[1737830887823,1.44586,3343.8,3343.7,0.00448471]
[1737830889716,0.47865,3343.2,3343.1,3.2078]
[1737830890023,2.38091884,3343.3,3342.6,1.00043]
[1737830890319,0.485,3343.1,3342.7,0.5226]
[1737830890516,0.4787,3342.9,3342.7,0.5226]
[1737830890717,0.485,3343.1,3342.7,0.5226]
[1737830890718,0.47869,3343.0,3342.7,1.00132]
[1737830892013,0.485,3343.1,3342.7,1.00132]
[1737830892213,0.4787,3342.9,3342.7,1.00132]
[1737830895826,0.4787,3342.9,3342.7,0.5226]
[1737830896228,0.4787,3342.9,3342.7,1.00131]
[1737830897127,0.4787,3342.9,3342.8,0.47871]
[1737830898729,0.485,3343.1,3342.8,0.47871]
[1737830898941,0.47868,3343.0,3342.8,0.47871]
[1737830902034,0.485,3343.1,3342.7,0.5226]
[1737830902332,0.47868,3343.0,3342.8,0.4787]
[1737830903034,0.47868,3343.0,3342.7,0.5226]
[1737830903236,0.47871,3342.8,3342.7,0.5226]
[1737830903434,0.47872,3342.7,3342.6,0.5217]
[1737830903634,0.99562,3342.7,3342.6,0.5217]
[1737830905137,0.47873,3342.6,3342.5,3.21228471]
[1737830905339,0.96173,3342.6,3342.5,3.21228471]
[1737830907338,0.96173,3342.6,3342.5,3.69103471]
[1737830910342,0.483,3342.6,3342.5,3.69103471]
[1737830911047,0.96174,3342.6,3342.5,3.69103471]
[1737830911444,0.483,3342.6,3342.5,3.69103471]
[1737830911942,0.96173,3342.6,3342.5,3.69103471]
[1737830912544,0.483,3342.6,3342.5,3.69103471]
[1737830914146,0.96174,3342.6,3342.5,3.69103471]
[1737830915951,0.96174,3342.6,3342.5,3.21228471]
[1737830916848,0.96174,3342.6,3342.5,3.69103471]
[1737830918853,0.483,3342.6,3342.5,3.69103471]
[1737830919039,0.96173,3342.6,3342.5,3.69103471]
[1737830922855,0.96173,3342.6,3342.5,3.21228471]
[1737830923159,0.96173,3342.6,3342.5,3.69103471]
[1737830923656,0.96173,3342.6,3342.5,3.21228471]
[1737830923853,0.96173,3342.6,3342.5,3.69103471]
[1737830925946,0.96173,3342.6,3342.5,3.21228471]
[1737830926455,0.96173,3342.6,3342.5,0.00448471]
[1737830927856,0.96173,3342.6,3342.2,3.2078]
[1737830927857,0.483,3342.6,3342.2,3.2078]
[1737830928050,0.483,3342.6,3341.3,1.07492735]
[1737830928051,0.47885,3341.8,3341.7,0.9923]
[1737830928352,1.55377735,3341.8,3341.7,0.9923]
[1737830928970,1.55377735,3341.8,3341.7,1.47116]
[1737830929154,1.55377735,3341.8,3341.7,0.9923]
[1737830929456,1.55377735,3341.8,3341.7,1.47116]
[1737830930458,1.55377735,3341.8,3341.7,0.9923]
[1737830930664,0.47889,3341.6,3341.4,0.48337471]
[1737830930858,1.55381735,3341.6,3341.5,0.5015]
[1737830931158,0.47888,3341.7,3341.6,0.47887]
[1737830931358,1.07492735,3341.8,3341.5,0.5015]
[1737830932061,0.47888,3341.6,3341.5,0.98038]
[1737830933054,0.47888,3341.6,3341.5,0.5015]
[1737830933758,0.47888,3341.6,3341.5,0.98039]
[1737830933954,1.55380735,3341.6,3341.5,0.98039]
[1737830935156,1.55380735,3341.6,3341.5,0.5015]
[1737830935357,1.55380735,3341.6,3341.4,0.00448471]
[1737830935358,0.47889,3341.5,3341.4,0.00448471]
[1737830935563,1.01,3341.5,3340.8,3.7016]
[1737830935755,1.01,3341.5,3338.9,5.22228291]
[1737830935756,0.47901,3340.7,3340.6,0.5211]
[1737830935958,1.55393735,3340.7,3340.6,0.5211]
[1737830936272,1.55393735,3340.7,3340.4,3.2078]
[1737830936273,0.47904,3340.5,3340.4,3.2078]
[1737830936473,1.55396735,3340.5,3340.4,3.2078]
[1737830937762,0.47904,3340.5,3340.4,3.2078]
[1737830943364,0.47908,3340.2,3340.1,0.00448471]
[1737830943562,2.86412393,3340.2,3340.1,0.00448471]
[1737830945762,1.19774,3340.1,3339.1,3.2078]
[1737830945963,2.38504393,3339.3,3339.1,3.7211]
[1737830946459,2.38504393,3339.3,3339.1,3.2078]
[1737830946767,1.99692,3339.2,3339.1,3.2078]
[1737830946966,1.5177,3339.2,3339.1,3.2078]
[1737830947164,1.99692,3339.2,3339.1,3.2078]
[1737830951767,0.98022,3339.2,3339.1,3.2078]
[1737830951971,0.47922,3339.2,3339.1,3.2078]
[1737830952166,0.00449149,3339.5,3339.1,3.2078]
[1737830952467,0.00449149,3339.5,3339.4,0.47919]
[1737830954367,2.979,3339.8,3339.7,0.47915]
[1737830955565,3.45814,3339.8,3339.6,0.5231]
[1737830955764,0.47915,3339.7,3339.6,0.5231]
[1737830955968,0.47916,3339.6,3339.5,3.2078]
[1737830958467,0.5136,3339.7,3339.5,3.2078]
[1737830958667,0.99276,3339.7,3339.5,3.68697]
[1737830959670,0.99276,3339.7,3339.5,0.47917]
[1737830960276,2.38504393,3339.9,3339.5,0.47917]
[1737830960580,2.86417393,3339.9,3339.3,0.47921]
[1737830960781,0.47914,3339.8,3339.5,0.47917]
[1737830961178,0.47914,3339.8,3339.6,0.47916]
[1737830961379,0.47914,3339.8,3339.5,0.47917]
[1737830961882,0.47915,3339.7,3339.6,0.4829]
[1737830962279,2.38504393,3339.9,3339.6,0.4829]
[1737830962488,0.47915,3339.8,3339.6,0.4829]
[1737830963287,0.47915,3339.7,3339.6,0.4829]
[1737830966887,0.47915,3339.8,3339.6,0.96206]
[1737830967189,0.47915,3339.7,3339.6,0.4829]
[1737830968985,2.38504393,3339.9,3339.3,0.47921]
[1737830969184,0.4814,3339.6,3339.3,0.495]
[1737830969395,0.47919,3339.4,3339.3,0.495]
[1737830969694,0.47919,3339.5,3339.3,0.97421]
[1737830969991,0.4814,3339.6,3339.3,0.97421]
[1737830970197,0.47919,3339.4,3339.3,0.97421]
[1737830970584,0.4814,3339.6,3339.3,0.97421]
[1737830970785,0.47919,3339.4,3339.3,0.97421]
[1737830971489,0.47919,3339.4,3339.3,0.9742]
[1737830971695,0.47919,3339.4,3339.3,0.495]
[1737830974094,0.47919,3339.4,3339.3,0.97421]
[1737830975183,2.38504393,3340.4,3339.3,0.495]
[1737830975399,0.47914,3339.8,3339.7,0.47914]
[1737830976490,0.47915,3339.8,3339.6,0.98656]
[1737830976690,0.47916,3339.7,3339.5,3.2078]
[1737830977398,0.47916,3339.7,3339.5,3.68698]
[1737830978996,0.47916,3339.6,3339.5,3.2078]
[1737830979198,0.96966,3339.6,3339.5,3.2078]
[1737830979801,0.47914,3339.8,3339.6,0.47916]
[1737830980894,0.47914,3339.9,3339.6,0.47915]
[1737830981101,0.47914,3339.8,3339.6,0.47915]
[1737830982695,0.47914,3339.8,3339.5,3.2078]
[1737830982898,0.47914,3339.8,3339.6,0.47916]
[1737830983301,0.47914,3339.8,3339.5,3.2078]
[1737830983598,0.47914,3339.8,3339.5,3.68697]
[1737830983800,0.47915,3339.7,3339.5,3.68697]
[1737830984795,0.42109271,3339.9,3339.5,0.47917]
[1737830984992,0.47916,3339.7,3339.5,3.68697]
[1737830985198,0.47916,3339.6,3339.5,3.68697]
[1737830985405,0.42109271,3339.9,3339.5,3.68697]
[1737830985606,0.47916,3339.6,3339.5,3.68697]
[1737830985807,0.47916,3339.6,3339.5,3.2078]
[1737830986707,0.90025271,3339.6,3339.5,3.2078]
[1737830987699,0.47921,3339.3,3339.2,0.485]
[1737830988204,0.42109271,3339.4,3339.2,0.485]
[1737830988396,0.941,3340.5,3339.2,0.485]
[1737830988397,0.42109271,3339.6,3339.2,0.485]
[1737830988597,0.47916,3339.7,3339.5,3.68698]
[1737830988798,0.42109271,3339.9,3339.6,0.4873]
[1737830989097,0.42109271,3339.9,3339.7,0.481]
[1737830989098,0.47915,3339.8,3339.7,0.481]
[1737830991707,0.00449149,3340.1,3340.0,0.47911]
[1737830992098,0.00449149,3340.1,3339.7,0.481]
[1737830992307,0.00449149,3340.1,3339.8,0.47913]
[1737830992308,0.47911,3340.0,3339.8,0.47913]
[1737830992803,0.47911,3340.0,3339.7,0.481]
[1737830993005,0.47911,3340.0,3339.7,0.96014]
[1737830993193,0.00449149,3340.1,3339.7,0.96014]
[1737830993401,0.47912,3339.9,3339.7,0.96014]
[1737830994009,0.47912,3340.0,3339.7,0.96014]
[1737830994501,0.47912,3339.9,3339.7,0.96014]
[1737830994804,0.00449149,3340.1,3339.7,0.481]
[1737830995107,0.48358149,3340.1,3339.9,0.47912]
[1737830995907,0.00449149,3340.1,3339.8,0.96033]
[1737830996096,0.48360149,3340.1,3339.9,0.47912]
[1737830996899,0.00449149,3340.1,3339.8,0.4812]
[1737830997100,0.00449149,3340.1,3339.9,0.47911]
[1737830998013,0.48359149,3340.1,3339.9,0.47911]
[1737830999307,0.00449149,3340.1,3339.8,0.4812]
[1737830999614,0.47911,3340.0,3339.8,0.96033]
[1737831000607,0.48359149,3340.1,3339.9,3.68692]
[1737831000803,0.47911,3340.0,3339.9,3.68692]
[1737831001009,0.47911,3340.0,3339.9,3.2078]
[1737831002405,0.48359149,3340.1,3339.9,3.68691]
[1737831002611,0.00449149,3340.1,3339.9,3.2078]
[1737831002914,0.47911,3340.0,3339.9,3.2078]
[1737831004214,0.47911,3340.0,3339.9,3.68692]
[1737831004615,0.47911,3340.0,3339.9,3.2078]
[1737831006115,0.96731,3340.0,3339.9,3.2078]
[1737831006808,1.38805837,3340.0,3339.9,3.2078]
[1737831007414,0.47916,3339.6,3339.5,3.2078]
[1737831012926,0.47918,3339.5,3339.4,0.47918]
[1737831013226,0.47918,3339.5,3339.4,3.68698]
[1737831013827,0.47917,3339.6,3339.5,0.47917]
[1737831018430,0.47916,3339.7,3339.6,0.47915]
[1737831022831,0.90022936,3339.8,3339.7,0.47915]
[1737831023019,0.47915,3339.8,3339.7,0.47915]
[1737831023628,0.4931,3339.9,3339.7,1.07671997]
[1737831023826,0.4931,3339.9,3339.8,0.97904]
[1737831025225,0.97222,3339.9,3339.8,0.97904]
[1737831025429,0.4931,3339.9,3339.5,3.2078]
[1737831025732,0.47916,3339.6,3339.5,3.68697]
[1737831025927,1.55587997,3339.6,3339.5,3.2078]
[1737831033536,1.55587997,3339.6,3339.5,3.6857]
[1737831035536,1.55587997,3339.6,3339.5,3.2078]
[1737831035740,1.07671997,3339.6,3339.5,3.68698]
[1737831035939,0.47914,3339.8,3339.5,3.2078]
[1737831035940,1.55585997,3339.8,3339.5,3.2078]
[1737831036140,1.55585997,3339.8,3339.6,0.99506]
[1737831036441,1.55585997,3339.8,3339.6,1.49626]
[1737831036837,0.47915,3339.7,3339.6,1.49626]
[1737831038542,0.47915,3339.7,3339.6,1.0171]
[1737831038839,0.47915,3339.7,3339.6,1.49626]
[1737831039043,0.90021654,3339.7,3339.6,1.49626]
[1737831039438,1.56491997,3340.0,3339.6,1.0171]
[1737831039640,0.47915,3339.7,3339.6,1.49626]
[1737831040242,0.9002183,3339.7,3339.6,1.49626]
[1737831040937,0.47915,3339.7,3339.6,1.49626]
[1737831041937,0.97844,3339.8,3339.7,0.47915]
[1737831042139,1.39951978,3339.8,3339.7,0.47915]
[1737831042538,0.42107978,3339.8,3339.7,0.47915]
[1737831042842,0.00449149,3340.1,3340.0,0.47911]
[1737831043039,0.00449149,3340.1,3340.0,1.55582997]
[1737831043345,0.00449149,3340.1,3340.0,0.47911]
[1737831047242,0.00449149,3340.1,3340.0,3.68691]
[1737831050051,0.48358149,3340.1,3340.0,3.2078]
[1737831050343,0.48358149,3340.1,3340.0,3.68691]
[1737831050542,0.00449149,3340.1,3340.0,3.68691]
[1737831050741,0.48358149,3340.1,3340.0,3.68691]
[1737831053463,0.48358149,3340.1,3340.0,3.2078]
[1737831053648,1.00058149,3340.1,3340.0,3.2078]
[1737831053851,0.47912,3339.9,3339.8,0.47913]
[1737831054651,0.52149149,3340.1,3339.6,5.78881997]
[1737831054848,0.47912,3340.0,3339.9,0.47911]
[1737831057551,0.47913,3339.9,3339.8,0.47913]
[1737831059050,0.47915,3339.8,3339.7,0.47914]
[1737831061568,0.47913,3339.9,3339.8,0.47912]
[1737831070364,0.00449149,3340.1,3340.0,0.47911]
[1737831070564,0.00449149,3340.1,3340.0,1.55582997]
[1737831072068,0.00449149,3340.1,3340.0,0.47911]
[1737831072269,0.48358149,3340.1,3340.0,0.47911]
[1737831072568,0.00449149,3340.1,3339.8,1.07671997]
[1737831072771,0.4903,3340.0,3339.9,0.47911]
[1737831073164,0.96941,3340.0,3339.9,0.47911]
[1737831073472,0.4903,3340.0,3339.9,0.47911]
[1737831073768,0.47914,3339.8,3339.7,3.2078]
[1737831074571,0.49,3339.9,3339.7,3.2078]
[1737831074764,0.96913,3339.9,3339.8,0.47914]
[1737831075267,0.9918,3340.0,3339.7,3.2078]
[1737831075467,0.00449149,3340.1,3339.7,3.2078]
[1737831075468,0.00449149,3340.1,3339.8,1.07671997]
[1737831075670,0.00449149,3340.1,3340.0,0.47911]
[1737831076365,0.48358149,3340.1,3340.0,0.47911]
[1737831076565,0.47911,3340.0,3339.9,0.47911]
[1737831076965,0.97741,3340.0,3339.9,0.47911]
[1737831077171,0.4983,3340.0,3339.9,0.47911]
[1737831078871,0.97741,3340.0,3339.9,0.47911]
[1737831080069,0.4983,3340.0,3339.9,0.47911]
[1737831082673,0.97741,3340.0,3339.9,0.47911]
[1737831089376,0.47911,3340.0,3339.9,0.47911]
[1737831090381,0.00449149,3340.1,3340.0,0.47911]
[1737831091871,0.48358149,3340.1,3340.0,0.47911]
[1737831092066,0.49689149,3340.1,3340.0,0.47911]
[1737831093971,0.00449149,3340.1,3340.0,1.55582997]
[1737831099187,0.00449149,3340.1,3340.0,1.7970261]
[1737831100585,1.0238,3340.9,3340.0,1.3179161]
[1737831100778,1.0238,3340.9,3340.8,3.68679]
[1737831101086,1.0238,3340.9,3340.8,4.76350997]
[1737831101873,1.50278,3340.9,3340.8,3.68679]
[1737831103384,1.0238,3340.9,3340.8,3.68679]
[1737831105987,1.50278,3340.9,3340.8,3.68679]
[1737831106184,1.0238,3340.9,3340.8,3.68679]
[1737831115485,1.0238,3340.9,3340.8,0.47899]
[1737831116888,1.08121146,3341.2,3340.7,3.2078]
[1737831117186,0.95056,3341.1,3341.0,0.47895]
[1737831118989,0.47898,3340.9,3340.8,0.47899]
[1737831119190,0.47898,3341.0,3340.9,0.47896]
[1737831123589,0.47898,3341.0,3340.9,0.47898]
[1737831125501,0.4716,3341.1,3340.7,3.2078]
[1737831125800,0.47897,3341.0,3340.9,0.47897]
[1737831126799,1.55568997,3341.0,3340.9,0.47897]
[1737831128196,0.4716,3341.1,3340.9,0.47897]